bitfinex-derivatives/quotes_ETHF0:USTF0_20260303
["timestamp","ask_amount","ask_price","bid_price","bid_amount"]
[1772516268384,10.06137895,2000.0,1998.8,11.00618806]
[1772516268582,10.06137895,1999.9,1998.8,11.00618806]
[1772516270284,10.06137895,1999.9,1999.0,10.75879596]
[1772516270587,10.06137895,1999.9,1999.2,10.75879596]
[1772516271084,9.805,2000.2,1999.2,10.75879596]
[1772516271085,10.06137895,2000.2,1999.2,10.75879596]
[1772516272886,10.06137895,2000.0,1999.0,10.75879596]
[1772516273086,10.06137895,1999.8,1999.0,10.75879596]
[1772516273285,10.06137895,1999.8,1998.6,0.25486998]
[1772516273286,10.06137895,1999.7,1998.6,0.00465998]
[1772516273482,10.06137895,1999.1,1998.0,10.75879596]
[1772516274494,10.06600138,1999.1,1998.0,10.76517724]
[1772516274792,11.43682852,1998.9,1998.0,0.00638128]
[1772516274994,10.06137895,1998.7,1998.0,0.00638128]
[1772516275291,10.06137895,1998.5,1998.0,10.76517724]
[1772516275490,10.06137895,1998.5,1998.0,0.00638128]
[1772516276193,10.06137895,1998.5,1998.0,10.76517724]
[1772516276394,10.06137895,1999.0,1998.0,10.76517724]
[1772516277395,10.06137895,1999.0,1998.0,0.00638128]
[1772516277892,10.06137895,1999.0,1998.0,10.76517724]
[1772516278294,11.57337895,1999.0,1998.0,10.76517724]
[1772516278495,10.06137895,1998.8,1998.0,10.76517724]
[1772516278892,11.57337895,1999.0,1998.2,10.75879596]
[1772516279594,10.06137895,1999.0,1998.2,10.75879596]
[1772516279794,0.00462243,1999.1,1998.2,10.75879596]
[1772516281797,0.00462243,1999.1,1998.1,9.377]
[1772516281798,10.06137895,1999.4,1998.4,10.75879596]
[1772516281997,10.06137895,1999.4,1998.6,10.75879596]
[1772516282388,10.06137895,1999.4,1998.1,10.75879596]
[1772516282595,10.06137895,1999.2,1998.4,10.75879596]
[1772516282795,10.06493918,1999.2,1998.3,10.75879596]
[1772516284291,0.00356023,1999.2,1998.3,10.75879596]
[1772516284899,10.43525439,1999.6,1998.5,11.63272919]
[1772516285093,10.43525439,1999.6,1998.7,10.25727962]
[1772516285294,10.43525439,1999.8,1998.7,10.25727962]
[1772516286000,10.43891004,1999.8,1998.7,10.25727962]
[1772516286492,10.43891004,1999.8,1998.6,9.382]
[1772516286493,10.43891004,1999.8,1998.9,10.25727962]
[1772516286694,10.43891004,1999.8,1999.1,10.25727962]
[1772516290203,0.00365565,1999.8,1999.1,10.25727962]
[1772516290505,10.43891004,1999.8,1999.1,10.25727962]
[1772516291902,11.81812419,1999.8,1998.9,19.65927962]
[1772516292099,10.43891004,1999.8,1999.0,10.25727962]
[1772516292805,10.43891004,1999.8,1998.9,9.402]
[1772516293004,10.43891004,1999.8,1998.9,19.65927962]
[1772516293307,10.43891004,1999.8,1999.0,10.25727962]
[1772516294307,11.81812419,1999.8,1998.9,9.406]
[1772516294503,10.43525439,1999.6,1998.9,9.406]
[1772516295107,11.81446854,1999.6,1998.6,19.66527962]
[1772516295405,10.43525439,1999.3,1998.6,19.66527962]
[1772516295808,10.43525439,1999.3,1998.1,10.25727962]
[1772516296113,10.43525439,1999.3,1998.3,10.25727962]
[1772516297814,10.43525439,1999.3,1998.0,0.00638128]
[1772516297815,9.99540483,1998.6,1998.0,0.00638128]
[1772516298010,4.16500404,1999.1,1997.7,9.414]
[1772516298011,9.99540483,1998.4,1997.7,10.338726]
[1772516298309,9.99540483,1998.4,1997.0,10.338726]
[1772516298310,9.99540483,1998.0,1997.0,10.338726]
[1772516298503,9.99540483,1997.9,1997.1,10.338726]
[1772516299114,9.99540483,1997.9,1997.1,10.34365718]
[1772516299308,10.00146647,1997.9,1997.1,10.34365718]
[1772516299909,0.00606164,1997.9,1997.1,10.34365718]
[1772516300414,9.84033964,1997.9,1997.1,10.34365718]
[1772516300809,9.834278,1998.3,1997.4,10.57213089]
[1772516301111,9.834278,1998.5,1997.6,10.57213089]
[1772516301509,9.834278,1998.5,1997.7,10.57213089]
[1772516301710,11.24221415,1998.6,1997.7,10.57213089]
[1772516301711,9.834278,1998.3,1997.7,10.57213089]
[1772516302014,9.83994301,1998.3,1997.7,10.57213089]
[1772516303213,0.00566501,1998.3,1997.7,11.95134504]
[1772516303415,0.00566501,1998.3,1997.7,10.57213089]
[1772516303915,9.834278,1998.9,1998.0,10.57213089]
[1772516304116,9.834278,1998.9,1998.2,10.57213089]
[1772516304815,9.8388821,1998.9,1998.2,10.57213089]
[1772516305409,9.8388821,1998.9,1998.2,20.02513089]
[1772516305612,11.21809625,1998.9,1998.0,20.02413089]
[1772516306017,11.21809625,1998.9,1998.1,10.57213089]
[1772516306213,9.8388821,1998.9,1998.1,10.57213089]
[1772516306713,9.8388821,1998.9,1998.1,11.95134504]
[1772516306918,4.16500404,1999.3,1998.4,10.57213089]
[1772516306919,9.834278,1999.3,1998.4,10.57213089]
[1772516307113,9.834278,1999.3,1998.5,9.452]
[1772516307309,9.834278,1999.1,1998.5,9.452]
[1772516308015,9.83802417,1999.1,1998.5,0.00593868]
[1772516308315,9.83802417,1999.1,1998.5,10.57806957]
[1772516308514,0.00374617,1999.1,1998.5,10.57806957]
[1772516309925,9.83802417,1999.1,1998.5,10.57806957]
[1772516311019,9.83802417,1999.1,1998.5,0.00593868]
[1772516311224,9.83802417,1999.1,1997.5,0.25034]
[1772516311225,9.834278,1998.9,1997.9,10.57213089]
[1772516311421,9.834278,1998.9,1998.0,10.57213089]
[1772516312122,9.834278,1998.8,1998.0,10.57213089]
[1772516312423,9.834278,1998.8,1998.0,10.57764904]
[1772516315426,0.00374617,1999.1,1998.0,11.95686319]
[1772516315721,9.83802417,1999.1,1998.3,10.57213089]
[1772516315925,9.83802417,1999.1,1998.5,10.57213089]
[1772516317028,9.83802417,1999.1,1998.1,10.57213089]
[1772516317327,9.83802417,1999.1,1998.3,10.57213089]
[1772516320027,9.83802417,1999.1,1998.6,10.57213089]
[1772516320225,9.83802417,1999.1,1998.7,10.57213089]
[1772516320526,9.834278,1999.3,1998.7,10.57213089]
[1772516320819,9.834278,1999.5,1998.7,10.57213089]
[1772516321022,0.25009,1999.7,1998.7,10.57213089]
[1772516321023,9.834278,1999.7,1998.7,11.95134504]
[1772516321226,7.8680978,2000.2,1998.7,11.95134504]
[1772516321227,9.834278,2000.1,1999.0,10.57213089]
[1772516321425,9.83974403,2000.1,1999.2,10.57213089]
[1772516323428,9.834278,1999.4,1998.4,10.57213089]
[1772516323630,9.834278,1999.2,1998.1,10.57213089]
[1772516323930,9.834278,1999.4,1998.4,10.57213089]
[1772516324130,9.834278,1999.4,1998.6,10.57213089]
[1772516325030,9.834278,1999.4,1998.6,20.09213089]
[1772516325633,9.834278,1999.7,1998.7,10.57213089]
[1772516325928,9.834278,1999.5,1998.7,10.57213089]
[1772516326133,9.834278,1999.7,1998.7,11.95134504]
[1772516326631,9.834278,1999.7,1998.7,10.57213089]
[1772516328429,1.37921415,1999.9,1999.0,9.73612685]
[1772516328430,10.31510262,1999.9,1999.0,9.73612685]
[1772516328735,10.31510262,1999.9,1999.2,9.73612685]
[1772516331430,10.31510262,1999.9,1999.2,19.26012685]
[1772516332135,10.31510262,1999.9,1999.0,9.73612685]
[1772516332136,11.69431677,1999.9,1999.0,9.73612685]
[1772516332336,10.31510262,1999.7,1999.1,19.26212685]
[1772516332533,10.31510262,1999.7,1999.2,9.73612685]
[1772516332935,10.31510262,2000.0,1999.2,9.73612685]
[1772516333436,10.31510262,1999.6,1998.8,9.528]
[1772516333737,10.31510262,1999.4,1998.8,9.528]
[1772516334537,10.31510262,1999.4,1998.0,1.3847323]
[1772516334538,10.31510262,1999.2,1998.6,9.531]
[1772516335041,10.31510262,1999.5,1998.7,9.73612685]
[1772516337937,10.31510262,1999.5,1998.9,9.73612685]
[1772516338133,11.82710262,1999.9,1998.9,9.73612685]
[1772516338342,7.06891917,1999.8,1998.9,9.73612685]
[1772516338541,10.31510262,1999.7,1998.9,9.73612685]
[1772516340839,10.31510262,1999.4,1998.7,19.27612685]
[1772516341344,10.31510262,1999.5,1998.8,9.73612685]
[1772516341544,10.31510262,1999.7,1998.8,11.115341]
[1772516342542,10.31510262,1999.7,1998.8,9.73612685]
[1772516342747,10.31510262,1999.5,1998.9,9.542]
[1772516342941,10.31510262,1999.5,1998.1,1.37921415]
[1772516342942,10.31510262,1998.9,1998.1,9.73612685]
[1772516343435,10.31510262,1998.7,1998.0,0.00551815]
[1772516343634,10.31510262,1998.5,1998.0,0.00551815]
[1772516344147,10.31510262,1998.5,1998.0,4.172e-05]
[1772516344735,10.31510262,1998.5,1998.0,9.73616857]
[1772516346744,10.31510262,1998.5,1998.0,4.172e-05]
[1772516348143,10.31871432,1998.7,1998.0,9.73616857]
[1772516349750,0.0036117,1998.7,1998.0,9.73616857]
[1772516350147,10.31871432,1998.7,1998.0,9.73616857]
[1772516350951,10.31871432,1998.7,1998.0,4.172e-05]
[1772516351749,10.31871432,1998.7,1998.0,9.73616857]
[1772516353252,11.69986666,1998.7,1998.0,4.172e-05]
[1772516353545,10.31510262,1998.5,1998.0,4.172e-05]
[1772516353948,10.31871432,1998.7,1998.0,4.172e-05]
[1772516355353,10.31510262,1998.4,1997.5,19.32012685]
[1772516356147,9.55602594,1998.3,1997.5,19.32459382]
[1772516356548,9.55602594,1998.3,1997.6,10.33255299]
[1772516357155,9.55602594,1998.5,1997.6,10.33255299]
[1772516359660,9.55602594,1998.5,1997.8,9.94174264]
[1772516360559,1.512,1998.6,1997.8,9.94174264]
[1772516360755,11.19330521,1998.6,1997.8,9.94174264]
[1772516361060,9.68130521,1998.6,1997.8,9.94174264]
[1772516361259,0.0036117,1998.7,1997.8,9.94174264]
[1772516362156,9.68491691,1998.7,1998.0,9.94174264]
[1772516363555,11.19330521,1999.1,1998.0,9.94174264]
[1772516363761,9.68130521,1999.3,1998.2,9.94174264]
[1772516364058,9.68130521,1999.3,1998.4,9.94174264]
[1772516364663,9.68685583,1999.3,1998.4,9.94174264]
[1772516365163,9.68685583,1999.3,1997.9,0.2503]
[1772516365164,9.68685583,1999.3,1998.6,9.94174264]
[1772516365357,9.68685583,1999.3,1998.7,9.593]
[1772516365953,9.68685583,1999.3,1998.7,19.53474264]
[1772516366165,9.68685583,1999.3,1998.8,9.94174264]
[1772516368751,0.00555062,1999.3,1998.8,9.94174264]
[1772516368962,9.68685583,1999.3,1998.8,9.94174264]
[1772516369356,0.00555062,1999.3,1998.8,9.94174264]
[1772516369758,9.68130521,1999.7,1998.8,9.94174264]
[1772516370061,4.16024209,1999.9,1998.8,9.94174264]
[1772516370062,9.68130521,1999.9,1998.8,9.94174264]
[1772516370560,9.68130521,2000.1,1999.0,9.94174264]
[1772516370858,9.68130521,1999.9,1999.2,9.94174264]
[1772516371064,9.68130521,1999.9,1999.1,9.614]
[1772516371565,9.68130521,1999.7,1999.0,0.00582105]
[1772516371860,9.68130521,1999.7,1999.0,19.57456369]
[1772516373063,9.68130521,1999.7,1999.1,9.94174264]
[1772516373762,9.68130521,1999.9,1999.1,9.94174264]
[1772516375558,0.00580923,2000.1,1999.1,9.94174264]
[1772516375559,9.68711444,2000.1,1999.1,9.94174264]
[1772516377158,0.00580923,2000.1,1999.1,9.94174264]
[1772516377564,9.68711444,2000.1,1999.1,9.94174264]
[1772516378764,9.68711444,2000.1,1999.3,9.94174264]
[1772516380461,0.00580923,2000.1,1999.3,9.94174264]
[1772516380864,9.68130521,2000.3,1999.3,9.94174264]
[1772516380865,9.68130521,2000.9,1999.3,9.94174264]
[1772516381064,9.68130521,2000.7,1999.3,9.94174264]
[1772516381870,9.68761311,2000.7,1999.5,9.94174264]
[1772516382066,9.68761311,2000.7,1999.7,9.94174264]
[1772516382868,9.68761311,2000.7,1999.8,19.57474264]
[1772516383462,9.68761311,2000.7,1999.8,9.633]
[1772516383661,9.68761311,2000.7,1999.8,19.57474264]
[1772516384268,9.68761311,2000.7,1999.9,9.94174264]
[1772516384966,9.68761311,2000.7,1999.9,19.58474264]
[1772516386066,9.68761311,2000.7,1999.9,9.643]
[1772516387673,9.68761311,2000.7,1999.9,19.70586365]
[1772516387870,9.68761311,2000.7,2000.0,10.06286365]
[1772516388573,9.68761311,2000.7,1999.9,9.643]
[1772516388770,9.68761311,2000.7,1999.8,9.645]
[1772516388977,9.68761311,2000.7,1999.8,19.70786365]
[1772516390272,9.68761311,2000.7,1999.8,10.06286365]
[1772516390476,9.68761311,2000.7,1999.8,19.70686365]
[1772516392180,9.68761311,2000.7,1999.9,10.06286365]
[1772516392677,9.68761311,2000.7,1999.9,19.70086365]
[1772516394182,9.68761311,2000.7,1999.9,9.638]
[1772516395078,9.68761311,2000.7,1999.9,19.70086365]
[1772516396382,10.30073265,2000.5,1999.9,19.70086365]
[1772516396582,10.30073265,2000.5,2000.0,10.06286365]
[1772516397781,10.30073265,2000.6,2000.0,10.06286365]
[1772516398682,10.30704055,2000.7,2000.0,10.06286365]
[1772516400185,10.30073265,2000.5,1999.9,9.638]
[1772516400489,10.30073265,2000.3,1999.4,19.71486365]
[1772516400688,6.97345981,2000.2,1999.4,19.71486365]
[1772516400888,10.30073265,2000.1,1999.4,19.71486365]
[1772516401089,10.30073265,2000.1,1999.5,10.06286365]
[1772516401789,10.30073265,2000.1,1999.4,9.652]
[1772516402288,10.30073265,2000.1,1999.5,10.06286365]
[1772516402990,10.30073265,2000.3,1999.5,10.06286365]
[1772516404390,10.30073265,2000.1,1999.5,19.72686365]
[1772516404790,10.30073265,2000.1,1999.6,10.06286365]
[1772516405487,11.81273265,2000.3,1999.6,10.06286365]
[1772516405780,17.28715231,2000.2,1999.6,10.06286365]
[1772516405983,10.30073265,2000.2,1999.6,10.06286365]
[1772516406181,10.23499,2000.4,1999.6,10.06286365]
[1772516406182,10.30073265,2000.4,1999.6,10.06286365]
[1772516406386,17.2891521,2000.3,1999.6,10.06286365]
[1772516406587,6.98841945,2000.2,1999.6,10.06286365]
[1772516407486,10.30073265,2000.1,1999.1,10.06286365]
[1772516407687,10.30073265,2000.1,1999.4,10.06286365]
[1772516408794,6.98876338,2000.0,1999.2,10.06286365]
[1772516409093,10.30073265,1999.9,1999.2,19.74186365]
[1772516409390,10.30073265,1999.9,1999.3,10.06286365]
[1772516409586,10.30073265,1999.9,1999.2,9.679]
[1772516409791,11.77175225,1999.8,1999.2,9.679]
[1772516409985,11.77175225,1999.8,1999.0,9.68682105]
[1772516410193,11.77175225,1999.8,1999.0,0.00582105]
[1772516410891,10.30073265,1999.6,1999.0,0.00582105]
[1772516411593,10.30073265,1999.4,1999.0,0.00582105]
[1772516412487,10.30073265,1999.6,1999.0,10.0686847]
[1772516412992,10.30073265,1999.8,1999.0,10.0686847]
[1772516413687,11.77175225,1999.8,1999.0,10.0686847]
[1772516413889,12.02182225,1999.8,1999.0,0.00582105]
[1772516416790,12.02182225,1999.8,1999.0,10.0686847]
[1772516416985,10.30073265,1999.6,1999.0,10.0686847]
[1772516417395,10.30073265,1999.8,1999.0,10.0686847]
[1772516419495,10.06813394,2000.0,1999.0,10.0686847]
[1772516419794,10.06813394,2000.2,1999.0,10.0686847]
[1772516420998,10.30101,2000.3,1999.1,9.72118682]
[1772516420999,10.06813394,2000.0,1999.1,9.72118682]
[1772516421196,10.06813394,1999.8,1999.1,9.72118682]
[1772516422689,10.06813394,2000.0,1999.1,9.72118682]
[1772516422889,10.06813394,2000.3,1999.1,9.72118682]
[1772516423089,6.97573616,2000.2,1999.1,9.72118682]
[1772516423394,10.06813394,2000.1,1999.1,9.72118682]
[1772516424099,11.53915354,2000.1,1999.1,9.72118682]
[1772516424290,10.06813394,1999.7,1999.0,0.00582105]
[1772516425099,10.06813394,1999.5,1999.0,0.00582105]
[1772516425501,11.53915354,1999.5,1998.5,9.72118682]
[1772516425702,11.53915354,1999.5,1998.6,9.72118682]
[1772516426499,11.53915354,1999.5,1998.6,9.72763696]
[1772516429402,10.06813394,1999.4,1998.6,9.72763696]
[1772516435001,12.95389807,2001.1,1998.6,9.72763696]
[1772516435002,10.06813394,1999.7,1998.6,9.72763696]
[1772516437107,10.06813394,1999.9,1998.6,11.19865656]
[1772516437313,10.06813394,1999.7,1998.6,9.72763696]
[1772516437907,10.06813394,1999.7,1998.8,9.72118682]
[1772516442519,10.06813394,2000.0,1998.8,9.72118682]
[1772516442714,17.04410738,1999.9,1998.8,9.72118682]
[1772516442913,10.06813394,1999.9,1998.8,9.72118682]
[1772516445916,4.16024209,2000.2,1999.3,9.72118682]
[1772516445917,10.06813394,2000.2,1999.3,9.72118682]
[1772516446118,10.06813394,2000.4,1999.5,9.72118682]
[1772516448222,9.93281855,2000.5,1999.5,9.72118682]
[1772516449023,9.93281855,2000.5,1999.5,11.19220642]
[1772516449726,9.93281855,2000.5,1999.5,9.72118682]
[1772516450222,9.93281855,2000.5,1999.7,9.30993974]
[1772516452716,0.0063079,2000.7,1999.7,9.30993974]
[1772516452717,9.93281855,2000.6,1999.7,9.30993974]
[1772516453120,9.93281855,2000.6,1999.8,19.01793974]
[1772516454520,9.93281855,2000.6,1999.9,9.30993974]
[1772516458024,9.93281855,2000.6,1999.8,9.708]
[1772516458228,9.93281855,2000.6,1999.7,9.30993974]
[1772516458424,9.93281855,2000.4,1999.7,9.30993974]
[1772516459430,9.93281855,2000.4,1999.5,9.30993974]
[1772516460822,7.00375795,2000.3,1999.4,19.03193974]
[1772516461019,9.93281855,2000.2,1999.4,19.03193974]
[1772516461424,9.93281855,2000.2,1999.5,9.30993974]
[1772516461931,9.93281855,2000.1,1999.4,19.03193974]
[1772516462130,9.93281855,2000.1,1999.2,9.30993974]
[1772516462326,9.93281855,1999.8,1999.1,9.725]
[1772516462928,9.93281855,1999.7,1998.9,19.03693974]
[1772516463428,9.93281855,1999.7,1999.0,9.30993974]
[1772516463625,4.16024209,2000.1,1999.0,9.30993974]
[1772516463831,4.16024209,2000.1,1998.6,0.00645014]
[1772516463832,9.93281855,2000.1,1999.2,9.30993974]
[1772516464134,9.93281855,2000.1,1999.3,9.30993974]
[1772516464523,9.93281855,2000.0,1999.3,9.30993974]
[1772516465033,9.93281855,2000.2,1999.3,9.30993974]
[1772516465734,9.93281855,2000.6,1999.5,9.30993974]
[1772516466030,9.93912645,2000.7,1999.7,10.78095934]
[1772516466231,0.0063079,2000.7,1999.7,10.78095934]
[1772516467133,9.93281855,2001.1,2000.1,9.30993974]
[1772516467333,9.93281855,2001.1,2000.3,9.30993974]
[1772516468133,0.00534005,2001.1,2000.3,10.78458948]
[1772516468433,0.00534005,2001.1,2000.3,9.31356988]
[1772516469442,9.9381586,2001.1,2000.3,9.31356988]
[1772516470729,0.00534005,2001.1,2000.3,9.31356988]
[1772516470931,9.9381586,2001.1,2000.3,9.31356988]
[1772516471534,9.9381586,2001.1,2000.3,0.00363014]
[1772516472036,9.93281855,2001.0,2000.3,9.31356988]
[1772516472238,9.93281855,2001.0,2000.3,0.00363014]
[1772516473835,9.93281855,2000.9,2000.3,9.31356988]
[1772516474336,9.9381586,2001.1,2000.3,9.31356988]
[1772516474940,9.9381586,2001.1,2000.5,9.30993974]
[1772516475642,0.00534005,2001.1,2000.5,9.30993974]
[1772516475833,4.16024209,2001.7,2000.7,9.30993974]
[1772516475834,9.93281855,2001.7,2000.7,9.30993974]
[1772516476137,9.93281855,2001.9,2000.9,9.30993974]
[1772516476839,9.93653488,2001.9,2000.9,9.30993974]
[1772516477040,0.00371633,2001.9,2000.9,9.30993974]
[1772516477441,9.93653488,2001.9,2000.9,9.30993974]
[1772516477742,9.07594077,2001.9,2000.9,9.30993974]
[1772516477940,0.00371633,2001.9,2000.9,9.30993974]
[1772516478239,9.07594077,2001.9,2000.9,9.30993974]
[1772516478741,9.07594077,2001.9,2001.1,10.00011071]
[1772516479437,0.00371633,2001.9,2001.1,10.00011071]
[1772516479837,9.38388058,2001.9,2001.1,10.00011071]
[1772516480234,9.38388058,2001.9,2001.0,9.726]
[1772516480439,9.38388058,2001.9,2001.0,18.97852168]
[1772516480940,9.38388058,2001.9,2000.7,9.25252168]
[1772516482138,9.38016425,2001.8,2000.7,9.25252168]
[1772516487946,10.89216425,2001.8,2000.7,9.25252168]
[1772516488147,9.38016425,2001.6,2000.6,9.25252168]
[1772516489646,9.38016425,2001.4,2000.4,18.98452168]
[1772516489844,9.38016425,2001.4,2000.5,9.25252168]
[1772516490440,9.38016425,2001.3,2000.4,9.732]
[1772516490646,9.38016425,2001.3,2000.3,9.25615182]
[1772516491452,9.38016425,2001.1,2000.3,0.00363014]
[1772516492546,9.38016425,2000.9,2000.3,0.00363014]
[1772516492754,9.38016425,2000.8,2000.3,0.00363014]
[1772516492947,9.38016425,2000.8,2000.0,9.25252168]
[1772516493348,9.38016425,2001.0,2000.0,9.25252168]
[1772516493949,9.38016425,2001.0,2000.0,9.25613924]
[1772516496853,9.38016425,2001.4,2000.0,9.25613924]
[1772516497053,9.38016425,2001.2,2000.0,9.25613924]
[1772516498858,9.38016425,2001.2,2000.2,9.25252168]
[1772516499053,9.38016425,2001.2,2000.1,0.25002]
[1772516499054,9.38016425,2001.2,2000.4,9.25252168]
[1772516501755,9.38016425,2001.2,2000.2,9.25252168]
[1772516506563,9.63007425,2001.0,2000.0,9.25613924]
[1772516506761,9.38016425,2000.8,2000.0,9.25613924]
[1772516507165,9.38016425,2000.8,2000.0,0.00361756]
[1772516507959,9.38016425,2000.8,2000.0,9.6956272]
[1772516508764,9.11180972,2000.6,2000.0,0.00361756]
[1772516508954,9.11180972,2000.6,1999.5,9.69200964]
[1772516509157,6.86946659,2000.5,1999.5,9.69200964]
[1772516509357,9.11180972,2000.4,1999.5,9.69200964]
[1772516509959,9.11613093,2000.4,1999.5,9.69637522]
[1772516512566,6.86484592,2000.3,1999.5,9.69637522]
[1772516512767,9.11180972,2000.2,1999.5,9.69637522]
[1772516514261,9.11613093,2000.4,1999.5,9.69637522]
[1772516516266,0.00432121,2000.4,1999.5,9.69637522]
[1772516517873,9.11613093,2000.4,1999.5,9.69637522]
[1772516518268,0.00432121,2000.4,1999.5,9.69637522]
[1772516518476,9.11180972,2000.6,1999.7,9.69200964]
[1772516518772,9.11180972,2000.8,1999.9,9.69200964]
[1772516518968,6.91459381,2000.7,1999.9,9.69200964]
[1772516519168,5.66809168,2001.0,1999.9,9.69200964]
[1772516519169,9.11180972,2000.9,1999.9,9.69200964]
[1772516519569,9.11759529,2000.9,1999.9,9.69200964]
[1772516520575,9.11759529,2000.9,2000.1,9.69200964]
[1772516520576,0.00578557,2000.9,2000.1,9.69200964]
[1772516520975,0.00578557,2000.9,1999.8,11.17482458]
[1772516520976,9.11180972,2000.8,1999.8,9.69200964]
[1772516524871,9.11180972,2000.6,1999.8,9.69200964]
[1772516525071,0.00578557,2000.9,2000.0,9.69200964]
[1772516525475,9.11180972,2001.2,2000.0,9.69200964]
[1772516525879,9.11180972,2001.2,2000.2,9.69200964]
[1772516526479,9.1180429,2001.2,2000.2,9.69200964]
[1772516527978,6.86024673,2001.1,1999.8,9.69200964]
[1772516528181,9.11180972,2001.0,1999.8,9.69200964]
[1772516529274,6.86077473,2000.9,1999.8,9.69200964]
[1772516529482,9.11180972,2000.8,1999.8,9.69200964]
[1772516529783,9.11180972,2000.6,1999.8,9.69200964]
[1772516530682,9.11180972,2000.8,1999.8,9.69200964]
[1772516531684,9.11180972,2001.0,1999.8,9.69200964]
[1772516533481,9.11180972,2001.0,2000.0,9.69200964]
[1772516534684,9.11180972,2001.0,2000.0,11.16204138]
[1772516537184,9.11180972,2001.0,2000.2,9.69200964]
[1772516537382,9.11180972,2001.0,2000.3,9.69200964]
[1772516539185,9.53061374,2001.2,2000.3,11.16204138]
[1772516539381,9.53061374,2001.2,1999.7,6.15191]
[1772516539382,9.78050374,2001.2,1999.7,7.90803174]
[1772516539684,9.78050374,2001.2,1999.9,9.74251215]
[1772516541883,9.31055747,2001.0,1999.9,9.74251215]
[1772516542084,6.86159033,2000.9,1999.9,9.74251215]
[1772516542284,9.31055747,2000.8,1999.9,9.74251215]
[1772516544388,9.31055747,2001.1,1999.9,9.74251215]
[1772516544589,4.41221486,2001.2,1999.9,9.74251215]
[1772516544590,9.31055747,2000.9,1999.9,9.74251215]
[1772516545394,9.31055747,2000.9,2000.1,9.74251215]
[1772516551499,9.31055747,2001.1,2000.3,11.21254389]
[1772516551702,9.31679065,2001.2,2000.5,9.74251215]
[1772516556711,17.75686365,2001.7,2000.5,9.74251215]
[1772516556712,9.31055747,2001.5,2000.5,9.74251215]
[1772516557612,9.3162129,2001.5,2000.5,9.74251215]
[1772516561015,9.5660729,2001.5,2000.5,9.74251215]
[1772516561309,9.5660729,2001.5,2000.4,9.696]
[1772516561310,9.31055747,2001.3,2000.4,9.74251215]
[1772516561515,9.31055747,2001.1,2000.3,9.703]
[1772516561815,9.31055747,2000.9,2000.0,19.45451215]
[1772516562310,9.31055747,2000.9,2000.1,9.74251215]
[1772516567715,9.31055747,2000.9,2000.2,9.714]
[1772516569524,9.31055747,2000.9,2000.2,19.4217872]
[1772516570417,9.31055747,2000.9,1999.9,9.721]
[1772516570418,10.78058921,2000.9,1999.9,9.721]
[1772516570618,9.49115016,2000.7,1999.9,9.721]
[1772516570924,9.49115016,2000.7,1999.9,19.4287872]
[1772516572622,9.49115016,2000.7,2000.0,9.7077872]
[1772516580530,9.49115016,2000.7,1999.9,9.721]
[1772516580531,10.9611819,2000.6,1999.9,9.721]
[1772516580734,10.9611819,2000.6,1999.7,9.754]
[1772516581032,9.49115016,2000.4,1999.5,9.75936558]
[1772516581234,9.49115016,2000.2,1999.5,0.00436558]
[1772516581428,9.49115016,2000.2,1999.5,9.71215278]
[1772516582335,11.00315016,2000.4,1999.5,9.71215278]
[1772516582929,9.49115016,2000.5,1999.5,11.18218452]
[1772516586534,9.49115016,2000.5,1999.7,9.7077872]
[1772516586835,9.49115016,2000.5,1999.6,0.25009]
[1772516586836,9.49115016,2000.9,1999.9,9.7077872]
[1772516587538,9.49115016,2000.9,2000.1,9.7077872]
[1772516594238,9.49115016,2000.9,2000.0,19.4717872]
[1772516594639,9.49115016,2000.9,2000.1,9.7077872]
[1772516595138,6.85712013,2000.8,2000.1,9.7077872]
[1772516595334,9.49115016,2000.7,2000.0,19.4717872]
[1772516595534,9.49115016,2000.7,2000.0,9.764]
[1772516595735,9.49115016,2000.7,1999.5,0.00436558]
[1772516595736,9.49115016,2000.7,1999.7,19.4877872]
[1772516596142,9.49115016,2000.5,1999.8,9.7077872]
[1772516596544,9.49115016,2000.5,1999.7,19.4877872]
[1772516598435,10.039,2000.4,1999.7,0.18718989]
[1772516598639,9.49116969,2000.3,1999.5,0.00436558]
[1772516598842,9.49116969,2000.1,1999.5,0.00436558]
[1772516600240,9.49116969,2000.1,1999.5,8.9313506]
[1772516604446,8.82363964,2000.2,1999.5,8.9313506]
[1772516616049,8.82363964,2000.4,1999.5,8.9313506]
[1772516618259,8.82363964,2000.2,1999.5,8.9313506]
[1772516620358,8.82363964,1999.8,1999.0,8.92698502]
[1772516621256,8.82762375,1999.8,1999.0,8.93326063]
[1772516621661,8.82363964,1999.6,1999.0,0.00627561]
[1772516622661,8.82363964,1999.6,1999.0,8.93326063]
[1772516626371,0.00398411,1999.8,1999.1,8.92698502]
[1772516626571,8.82762375,1999.8,1999.1,8.92698502]
[1772516628871,8.67356077,1999.7,1999.1,8.92698502]
[1772516629268,8.67754488,1999.8,1999.1,8.92698502]
[1772516630874,0.00398411,1999.8,1999.1,8.92698502]
[1772516631271,8.67754488,1999.8,1999.1,8.92698502]
[1772516635773,8.92761488,1999.8,1999.0,0.00627561]
[1772516635968,8.67356077,1999.6,1999.0,8.38188365]
[1772516641578,8.67754488,1999.8,1999.2,8.37560804]
[1772516641778,0.00398411,1999.8,1999.2,8.37560804]
[1772516641979,8.67754488,1999.8,1999.2,8.37560804]
[1772516643479,8.04858956,2000.3,1999.2,8.37560804]
[1772516643480,4.15609168,2000.3,1999.2,8.37560804]
[1772516643682,8.67356077,2000.1,1999.2,8.37560804]
[1772516644377,8.67356077,2000.1,1999.4,8.37560804]
[1772516644584,8.67905248,2000.1,1999.4,8.37560804]
[1772516647888,0.00549171,2000.1,1999.4,8.37560804]
[1772516650196,8.67356077,2000.5,1999.4,8.37560804]
[1772516651096,8.67752527,2000.5,1999.4,8.37560804]
[1772516654794,0.0039645,2000.5,1999.4,8.37560804]
[1772516654997,0.0039645,2000.5,1999.6,8.37560804]
[1772516654998,8.67752527,2000.5,1999.6,8.37560804]
[1772516655197,8.67752527,2000.5,1999.8,8.37560804]
[1772516655393,8.67752527,2000.5,1999.7,8.37560804]
[1772516656000,8.67752527,2000.5,1999.6,18.23460804]
[1772516656402,8.67752527,2000.5,1999.6,9.859]
[1772516656602,6.8390582,2000.4,1999.6,9.859]
[1772516656897,8.67356077,2000.3,1999.6,9.859]
[1772516657295,8.67356077,2000.3,1999.3,18.23560804]
[1772516657596,10.1438245,2000.3,1999.3,18.23560804]
[1772516657795,8.15705045,2000.1,1999.3,18.23560804]
[1772516657999,8.15705045,2000.1,1999.3,8.37560804]
[1772516658297,8.15705045,2000.1,1999.0,0.00627561]
[1772516658497,8.15705045,1999.9,1999.0,8.17728146]
[1772516658700,8.15705045,1999.7,1999.0,8.17728146]
[1772516661204,8.15705045,1999.7,1999.1,7.54790937]
[1772516661501,8.3510165,1999.9,1999.1,7.54790937]
[1772516671203,8.3510165,1999.9,1999.3,7.54790937]
[1772516671511,8.3510165,2000.0,1999.3,7.54790937]
[1772516672200,1.512,2000.1,1999.3,7.54790937]
[1772516672405,9.8630165,2000.1,1999.3,7.54790937]